[Event "38th Barczay Memorial 2019"]
[Site "Zalakaros"]
[Date "2019.05.30"]
[Round "8.8"]
[White "Hrbolka, Ladislav Jr."]
[Black "Persanyi, Barnabas"]
[Result "1/2-1/2"]
[ECO "C68"]
[WhiteElo "2203"]
[BlackElo "2404"]
[Annotator "ChessBase"]
[PlyCount "120"]
[EventDate "2019.05.23"]
[EventType "swiss"]
[EventCountry "HUN"]
[SourceTitle "playchess.com"]
[Source "ChessBase"]
[SourceQuality "1"]
[TimeControl "40/5400+30:1800+30"]

1. e4 {[%emt 0:00:14]} e5 {[%emt 0:00:48]} 2. Nf3 {[%emt 0:00:35]} Nc6 {[%emt 0:00:26]} 3. Bb5 {[%emt 0:00:58]} a6 {[%emt 0:00:17]} 4. Bxc6 {[%emt 0:04:15]} dxc6 {[%emt 0:00:28]} 5. d4 {[%emt 0:02:52]} exd4 {[%emt 0:00:52]} 6. Qxd4 {[%emt 0:00:11]} Qxd4 {[%emt 0:00:36]} 7. Nxd4 {[%emt 0:00:05]} Bd7 {[%emt 0:02:39]} 8. Be3 {[%emt 0:01:56]} O-O-O {[%emt 0:01:30]} 9. Nd2 {[%emt 0:01:26]} Ne7 {[%emt 0:03:21]} 10. O-O-O {[%emt 0:06:01]} b6 {[%emt 0:05:18]} 11. f4 {[%emt 0:22:30]} Ng6 {[%emt 0:13:16]} 12. N4f3 {[%emt 0:05:38]} Bd6 {[%emt 0:14:40]} 13. f5 {[%emt 0:11:27]} Ne5 {[%emt 0:00:53]} 14. Nxe5 {[%emt 0:00:04]} Bxe5 {[%emt 0:00:07]} 15. Nf3 {[%emt 0:02:28]} Rhe8 {[%emt 0:04:16]} 16. Rhe1 {[%emt 0:01:07]} f6 {[%emt 0:05:21]} 17. Nxe5 {[%emt 0:01:27]} Rxe5 {[%emt 0:00:33]} 18. Bf4 {[%emt 0:00:09]} Re7 {[%emt 0:03:22]} 19. Re3 {[%emt 0:00:54]} Rde8 {[%emt 0:04:40]} 20. Rde1 {[%emt 0:00:14]} Rg8 {[%emt 0:04:37]} 21. g3 {[%emt 0:07:02]} Rf7 {[%emt 0:10:10]} 22. g4 {[%emt 0:05:01]} g6 {[%emt 0:00:57]} 23. fxg6 {[%emt 0:02:02]} hxg6 {[%emt 0:01:13]} 24. g5 {[%emt 0:00:34]} fxg5 {[%emt 0:01:22]} 25. Bxg5 {[%emt 0:00:08]} Rf2 {[%emt 0:02:10]} 26. h4 {[%emt 0:00:52]} c5 {[%emt 0:03:41]} 27. R3e2 {[%emt 0:02:38]} Rgf8 {[%emt 0:00:37]} 28. e5 {[%emt 0:01:55]} Rxe2 {[%emt 0:01:12]} 29. Rxe2 {[%emt 0:00:05]} Rf1+ {[%emt 0:00:09]} 30. Kd2 {[%emt 0:00:05]} Bg4 {[%emt 0:00:58]} 31. Rg2 {[%emt 0:06:25]} Bf5 {[%emt 0:01:21]} 32. c3 {[%emt 0:01:41]} Kd7 {[%emt 0:00:46]} 33. Ke3 {[%emt 0:02:04]} Ke6 {[%emt 0:00:58]} 34. Bf6 {[%emt 0:00:08]} b5 {[%emt 0:00:34]} 35. Rd2 {[%emt 0:03:23]} Rb1 {[%emt 0:00:50]} 36. Bd8 {[%emt 0:01:05]} Re1+ {[%emt 0:03:57]} 37. Re2 {[%emt 0:00:31]} Ra1 {[%emt 0:01:06]} 38. a3 {[%emt 0:00:19]} Kxe5 {[%emt 0:00:34]} 39. Bxc7+ {[%emt 0:00:08]} Kd5 {[%emt 0:00:10]} 40. Kf4 {[%emt 0:00:00]} Kc4 {[%emt 0:00:00]} 41. Bb6 {[%emt 0:10:42]} Rg1 {[%emt 0:09:24]} 42. Rh2 {[%emt 0:05:50]} Rf1+ {[%emt 0:03:30]} 43. Ke5 {[%emt 0:01:15]} Re1+ {[%emt 0:00:36]} 44. Kd6 {[%emt 0:00:29]} Re6+ {[%emt 0:01:27]} 45. Kc7 {[%emt 0:00:05]} Be4 {[%emt 0:04:26]} 46. b4 {[%emt 0:10:00]} g5 {[%emt 0:09:36]} 47. Bxc5 {[%emt 0:01:05]} g4 {[%emt 0:00:15]} 48. h5 {[%emt 0:02:16]} g3 {[%emt 0:00:54]} 49. Rh4 {[%emt 0:00:57]} g2 {[%emt 0:02:17]} 50. h6 {[%emt 0:02:58]} Rc6+ {[%emt 0:01:28]} 51. Kd7 {[%emt 0:00:06]} Rxc5 52. Rxe4+ {[%emt 0:00:04]} Kd3 {[%emt 0:00:36]} 53. Rg4 {[%emt 0:00:14]} Rh5 {[%emt 0:00:08]} 54. Rxg2 {[%emt 0:00:16]} Rxh6 {[%emt 0:00:08]} 55. Kc7 {[%emt 0:01:08]} Kc4 {[%emt 0:01:50]} 56. Kb7 {[%emt 0:01:23]} Kb3 {[%emt 0:00:36]} 57. Rg3 {[%emt 0:00:12]} Kxa3 {[%emt 0:00:13]} 58. Rf3 {[%emt 0:00:08]} Ka4 {[%emt 0:02:03]} 59. Rf1 {[%emt 0:00:12]} Kb3 {[%emt 0:00:06]} 60. Rf3 {[%emt 0:00:10]} Kc4 {[%emt 0:00:35]} 1/2-1/2

[Event "38th Barczay Memorial 2019"]
[Site "Zalakaros"]
[Date "2019.05.30"]
[Round "8.9"]
[White "Ianov, Viktor"]
[Black "Peczely, Sebastian Zsombor"]
[Result "1/2-1/2"]
[ECO "A06"]
[WhiteElo "2298"]
[BlackElo "2245"]
[Annotator "ChessBase"]
[PlyCount "115"]
[EventDate "2019.05.23"]
[EventType "swiss"]
[EventCountry "HUN"]
[SourceTitle "playchess.com"]
[Source "ChessBase"]
[SourceQuality "1"]
[TimeControl "40/5400+30:1800+30"]

1. Nf3 {[%emt 0:01:21]} d5 {[%emt 0:02:36]} 2. g3 {[%emt 0:00:12]} Nc6 {[%emt 0:00:04]} 3. Bg2 {[%emt 0:00:24]} e5 {[%emt 0:00:56]} 4. d3 {[%emt 0:00:09]} f6 {[%emt 0:00:30]} 5. c3 {[%emt 0:00:14]} Be6 {[%emt 0:00:14]} 6. b4 {[%emt 0:00:11]} Qd7 {[%emt 0:00:33]} 7. Qc2 {[%emt 0:00:58]} Bh3 {[%emt 0:06:44]} 8. Bxh3 {[%emt 0:00:11]} Qxh3 {[%emt 0:00:02]} 9. Nbd2 {[%emt 0:00:20]} Nh6 {[%emt 0:01:23]} 10. e4 {[%emt 0:01:55]} dxe4 {[%emt 0:00:41]} 11. dxe4 {[%emt 0:00:08]} O-O-O {[%emt 0:09:24]} 12. Bb2 {[%emt 0:02:18]} Ng4 {[%emt 0:14:00]} 13. Ke2 {[%emt 0:01:22]} g6 {[%emt 0:11:20]} 14. Rhg1 {[%emt 0:04:15]} Bh6 {[%emt 0:02:27]} 15. Nb3 {[%emt 0:00:15]} f5 {[%emt 0:02:27]} 16. b5 {[%emt 0:01:35]} fxe4 {[%emt 0:06:36]} 17. Qxe4 {[%emt 0:00:25]} Nd4+ {[%emt 0:04:48]} 18. cxd4 {[%emt 0:07:33]} exd4 {[%emt 0:00:19]} 19. Bxd4 {[%emt 0:00:07]} Rhe8 {[%emt 0:00:23]} 20. Be5 {[%emt 0:01:11]} Nxe5 {[%emt 0:01:06]} 21. Nxe5 {[%emt 0:00:14]} Qh5+ {[%emt 0:04:13]} 22. g4 {[%emt 0:00:07]} Qxe5 {[%emt 0:00:55]} 23. Qxe5 {[%emt 0:00:10]} Rxe5+ {[%emt 0:00:03]} 24. Kf3 {[%emt 0:00:57]} Rxb5 {[%emt 0:01:59]} 25. Rae1 {[%emt 0:02:56]} a5 {[%emt 0:03:01]} 26. Re4 {[%emt 0:00:26]} b6 {[%emt 0:03:58]} 27. Rge1 {[%emt 0:00:41]} Rd3+ {[%emt 0:00:22]} 28. Kg2 {[%emt 0:00:34]} Rb4 {[%emt 0:02:24]} 29. Rxb4 {[%emt 0:01:30]} axb4 {[%emt 0:00:05]} 30. Re8+ {[%emt 0:00:32]} Rd8 {[%emt 0:00:50]} 31. Rxd8+ {[%emt 0:00:26]} Kxd8 {[%emt 0:00:08]} 32. Kf3 {[%emt 0:00:05]} Kd7 {[%emt 0:01:52]} 33. Ke4 {[%emt 0:00:09]} Kd6 {[%emt 0:00:58]} 34. f4 {[%emt 0:00:20]} c5 {[%emt 0:00:44]} 35. h4 {[%emt 0:02:10]} Bg7 {[%emt 0:00:41]} 36. g5 {[%emt 0:02:34]} c4 {[%emt 0:02:05]} 37. Nd2 {[%emt 0:00:58]} b5 {[%emt 0:00:11]} 38. Nf3 {[%emt 0:00:41]} Ke6 {[%emt 0:06:26]} 39. h5 {[%emt 0:02:31]} b3 {[%emt 0:03:29]} 40. axb3 {[%emt 0:00:00]} cxb3 {[%emt 0:00:00]} 41. hxg6 {[%emt 0:01:41]} hxg6 {[%emt 0:00:32]} 42. Kd3 {[%emt 0:03:38]} Kf5 {[%emt 0:14:47]} 43. Nh4+ {[%emt 0:00:11]} Kxf4 {[%emt 0:00:12]} 44. Nxg6+ {[%emt 0:00:06]} Kxg5 {[%emt 0:00:58]} 45. Ne7 {[%emt 0:00:08]} Kf6 {[%emt 0:00:59]} 46. Nd5+ {[%emt 0:02:34]} Ke5 {[%emt 0:01:14]} 47. Nc3 {[%emt 0:02:24]} b4 {[%emt 0:00:11]} 48. Ne4 {[%emt 0:00:56]} b2 {[%emt 0:04:29]} 49. Nd2 {[%emt 0:00:18]} Kd5 {[%emt 0:04:50]} 50. Kc2 {[%emt 0:00:24]} Bc3 {[%emt 0:00:20]} 51. Nf3 {[%emt 0:00:30]} Ke4 {[%emt 0:00:34]} 52. Ng5+ {[%emt 0:00:21]} Kf5 {[%emt 0:00:33]} 53. Nf7 {[%emt 0:00:53]} Ke6 {[%emt 0:01:09]} 54. Ng5+ {[%emt 0:00:45]} Kd5 {[%emt 0:00:30]} 55. Nf3 {[%emt 0:02:04]} Bf6 {[%emt 0:00:09]} 56. Nd2 {[%emt 0:00:31]} Bg7 {[%emt 0:00:47]} 57. Nf3 {[%emt 0:01:21]} Ke4 {[%emt 0:00:08]} 58. Nd2+ {[%emt 0:00:37]} 1/2-1/2

[Event "38th Barczay Memorial 2019"]
[Site "Zalakaros"]
[Date "2019.05.30"]
[Round "8.11"]
[White "Boguszlavszkij, Jevgenyij"]
[Black "Csonka, Attila Istvan"]
[Result "1/2-1/2"]
[ECO "B40"]
[WhiteElo "2196"]
[BlackElo "2376"]
[Annotator "ChessBase"]
[PlyCount "53"]
[EventDate "2019.05.23"]
[EventType "swiss"]
[EventCountry "HUN"]
[SourceTitle "playchess.com"]
[Source "ChessBase"]
[SourceQuality "1"]
[TimeControl "40/5400+30:1800+30"]

1. e4 {[%emt 0:03:10]} c5 {[%emt 0:01:43]} 2. Nf3 {[%emt 0:00:06]} e6 {[%emt 0:00:09]} 3. d3 {[%emt 0:00:32]} Nc6 {[%emt 0:00:07]} 4. g3 {[%emt 0:00:08]} h5 {[%emt 0:01:32]} 5. Bg2 {[%emt 0:01:23]} Nge7 {[%emt 0:01:27]} 6. O-O {[%emt 0:03:18]} Ng6 {[%emt 0:01:23]} 7. h4 {[%emt 0:00:36]} d6 {[%emt 0:03:16]} 8. d4 {[%emt 0:03:15]} cxd4 {[%emt 0:12:40]} 9. Nxd4 {[%emt 0:00:58]} e5 {[%emt 0:00:14]} 10. Nf3 {[%emt 0:04:16]} Bg4 {[%emt 0:04:29]} 11. Qd3 {[%emt 0:02:09]} Qd7 {[%emt 0:04:04]} 12. Be3 {[%emt 0:05:31]} f5 {[%emt 0:14:26]} 13. exf5 {[%emt 0:02:09]} Bxf5 {[%emt 0:00:35]} 14. Qe2 {[%emt 0:04:45]} Be7 {[%emt 0:06:20]} 15. Nc3 {[%emt 0:08:40]} Bg4 {[%emt 0:04:47]} 16. Qd3 {[%emt 0:02:15]} Bf5 {[%emt 0:03:10]} 17. Qd2 {[%emt 0:03:21]} Nb4 {[%emt 0:01:38]} 18. Ne1 {[%emt 0:09:34]} Nc6 {[%emt 0:17:58]} 19. Nd5 {[%emt 0:02:07]} Bf6 {[%emt 0:02:50]} 20. Rd1 {[%emt 0:04:46]} Rd8 {[%emt 0:00:07]} 21. Nf3 {[%emt 0:02:57]} Nge7 {[%emt 0:00:55]} 22. c4 {[%emt 0:00:57]} Nxd5 {[%emt 0:00:21]} 23. cxd5 {[%emt 0:00:31]} Ne7 {[%emt 0:00:06]} 24. Ng5 {[%emt 0:05:04]} Bxg5 {[%emt 0:02:36]} 25. Bxg5 {[%emt 0:00:10]} Rc8 {[%emt 0:00:07]} 26. Rc1 {[%emt 0:00:32]} O-O {[%emt 0:01:47]} 27. Qe3 {[%emt 0:03:45]} 1/2-1/2